Cogmind - Beta 11.1 @@@ ROGUE MODE // 2022.06.24 @ 20:22:20 Player: Jezoensis Result: Escaped! Performance ------------- Evolutions (9) 4500 Regions Visited (24) 4800 Robots Destroyed (277) 1385 Value Destroyed (12708) 12708 Prototype IDs (54) 1080 Alien Tech Used (0) 0 Bonus (11070) 11070 TOTAL SCORE: 35543 Bonus ------- High Alert Combat Kills 2438 Follower Combat Kills 1006 Network Hubs Disabled 400 Aligned with FarCom 300 Met Warlord at Base 500 MAIN.C Attacked Warlord 500 Warlord Defense Kills 2292 Met R17 at Cetus 500 Met Warlord at Research 2000 Win 3000 Friendly Fire -1866 Cogmind --------- Core Integrity 1043/1600 Matter 46/300 Energy 52/100 System Corruption 11% Temperature Cool (0) Movement Core (50) Location To Epsilon Eridani Parts ------- > --- POWER (2) -------- (None) > --- PROPULSION (5) --- (None) > --- UTILITY (11) ----- (None) > --- WEAPON (7) ------- (None) > --- INVENTORY (5) ---- Advanced Thermal Shield Improved Force Field Nova Cannon Helical Railgun Peak State ------------ > --- POWER ------------ Heavy Antimatter Reactor Improved Quantum Reactor > --- PROPULSION ------- Armored Medium Treads Advanced Heavy Treads Centrium Heavy Treads > --- UTILITY ---------- Advanced Heat Sink Huge Storage Unit Spectral Analyzer Advanced Terrain Scan Processor Experimental Targeting Computer Advanced Target Analyzer Experimental Core Analyzer Improved Weapon Cycler Improved Transmission Jammer Advanced Force Field Advanced Hacking Suite > --- WEAPON ----------- KE Penetrator KE Penetrator KE Penetrator KE Penetrator Railgun Railgun Advanced KE Penetrator > --- INVENTORY -------- Quantum Reactor Armored Heavy Treads Biometal Heavy Treads Matter Compressor Advanced Terrain Scanner Advanced Transmission Jammer Cloaking Device Graphene Brace Advanced Thermal Shield Advanced Shield Generator Advanced Shield Generator Improved Force Field Improved Force Field Long-range Tractor Beam Nova Cannon YOLO Cannon KE Penetrator KE Penetrator KE Penetrator Helical Railgun Helical Railgun Tiamat Missile Launcher [Rating: 189] Favorites ----------- Power Cooled Ion Engine Engine Cooled Ion Engine Power Core Neutrino Core Reactor Particle Reactor Propulsion Wheel Treads Heavy Treads Wheel Wheel Utility Huge Storage Unit Device Structural Scanner Storage Huge Storage Unit Processor Advanced Terrain Scan Processor Hackware Hacking Suite Protection Improved Medium Armor Plating Weapon KE Penetrator Energy Gun Medium Laser Energy Cannon Nova Cannon Ballistic Gun KE Penetrator Launcher Mini Grenade Launcher Special Weapon Mining Laser Slashing Weapon Scythe Build | -11 -10 -10 -9 -9 -9 -8 -8 -7 -7 -7 -6 -5 -5 -5 -5 -5 -4 -4 -4 -4 -3 -3 -2 -1 ------- Run | Scr Mat Min Mat Min Exi Min Mat Fac Low Low Fac Fac Ext Cet Arc Hub Fac Upp Upp War Pro Res Res Acc Slots Evolved 18 | . . . 2 . . . 2 2 . . 2 2 . . . . 2 . . . . 2 2 2 Power 1 | . . . . . . . . . . . . . . . . . . . . . . . 1 . Propulsion 3 | . . . 1 . . . . 1 . . . . . . . . . . . . . 1 . . Utility 9 | . . . 1 . . . 1 1 . . 1 2 . . . . 1 . . . . 1 . 1 Weapon 5 | . . . . . . . 1 . . . 1 . . . . . 1 . . . . . 1 1 Parts Attached 543 | 9 24 15 30 14 1 11 30 42 10 2 23 25 29 28 12 38 6 2 4 24 11 15 76 62 Power 28 | 1 1 1 4 . . 1 . . . 1 . 4 1 3 1 . . . . 1 . 2 3 4 Engine 11 | 1 1 1 4 . . 1 . . . 1 . 2 . . . . . . . . . . . . Core 4 | . . . . . . . . . . . . 2 1 1 . . . . . . . . . . Reactor 13 | . . . . . . . . . . . . . . 2 1 . . . . 1 . 2 3 4 Propulsion 98 | 3 9 10 10 4 . 4 11 18 . . 4 5 3 6 . 1 . . 1 . . 2 2 5 Treads 55 | . 4 5 5 2 . 2 4 8 . . 2 3 3 6 . 1 . . 1 . . 2 2 5 Leg . | . . . . . . . . . . . . . . . . . . . . . . . . . Wheel 43 | 3 5 5 5 2 . 2 7 10 . . 2 2 . . . . . . . . . . . . Hover . | . . . . . . . . . . . . . . . . . . . . . . . . . Flight . | . . . . . . . . . . . . . . . . . . . . . . . . . Utility 273 | 3 9 2 9 6 1 2 11 17 5 . 13 11 17 11 10 30 5 . 2 13 11 8 49 28 Device 213 | 1 7 2 4 6 . 1 9 9 3 . 7 8 13 9 8 25 4 . 1 10 11 6 42 27 Storage 7 | 2 1 . 1 . 1 . 1 . . . . . . . . 1 . . . . . . . . Processor 22 | . . . 1 . . 1 . 2 . . 3 1 1 . . 1 . . . 3 . 2 7 . Hackware 6 | . . . . . . . . . . . 3 . . . . 1 1 . . . . . . 1 Protection 25 | . 1 . 3 . . . 1 6 2 . . 2 3 2 2 2 . . 1 . . . . . Artifact . | . . . . . . . . . . . . . . . . . . . . . . . . . Weapon 144 | 2 5 2 7 4 . 4 8 7 5 1 6 5 8 8 1 7 1 2 1 10 . 3 22 25 Energy Gun 11 | 1 3 . 1 . . . 1 . . . . . . . . . . . . 1 . . 4 . Energy Cannon 27 | . . . 3 2 . . . . 1 . 1 . 2 1 . 1 1 1 . 1 . 2 4 7 Ballistic Gun 85 | 1 . 2 3 . . 3 6 3 3 . 4 3 5 7 1 5 . 1 1 8 . 1 13 15 Ballistic Cannon . | . . . . . . . . . . . . . . . . . . . . . . . . . Launcher 10 | . . . . 1 . 1 . 1 1 . . 1 . . . 1 . . . . . . 1 3 Special Weapon 4 | . 2 . . 1 . . 1 . . . . . . . . . . . . . . . . . Impact Weapon . | . . . . . . . . . . . . . . . . . . . . . . . . . Slashing Weapon 7 | . . . . . . . . 3 . 1 1 1 1 . . . . . . . . . . . Piercing Weapon . | . . . . . . . . . . . . . . . . . . . . . . . . . Special Melee Weapon . | . . . . . . . . . . . . . . . . . . . . . . . . . Unidentified Prototypes 28 | . . . 5 . . . 2 . . . 1 1 . 5 . 1 . . . 2 . 3 8 . Corrupted Parts 1 | . . . . . . . . . . . . . . . . 1 . . . . . . . . System Corruption 6 | . . . . . . . . . . . . . . . . 6 . . . . . . . . Parts Lost 42 | . . 4 . 2 . 6 . . . . . 1 1 . . 1 . . 1 4 . . 2 20 Power 6 | . . 1 . . . . . . . . . 1 . . . . . . . . . . . 4 Propulsion 10 | . . 1 . 2 . 2 . . . . . . . . . . . . . . . . . 5 Utility 8 | . . . . . . 1 . . . . . . 1 . . . . . 1 1 . . . 4 Weapon 18 | . . 2 . . . 3 . . . . . . . . . 1 . . . 3 . . 2 7 Highest Loss Streak 9 | . . 2 . 2 . 4 . . . . . 1 1 . . 1 . . 1 3 . . 2 9 To Critical Strikes . | . . . . . . . . . . . . . . . . . . . . . . . . . Average Slot Usage (%) 92 | . 99 98 99 98 100 96 99 98 91 92 93 94 93 87 88 88 88 89 88 88 89 90 90 88 Engine 3 | . 14 14 11 11 11 11 9 7 7 7 6 2 . . . . . . . . . . . . Reactor 2 | . . . . . . . . . . . . . . 1 3 5 5 5 5 5 5 4 7 7 Treads 10 | . 3 7 12 11 11 13 2 7 7 7 6 13 17 14 11 11 10 10 10 10 10 14 13 11 Wheel 8 | . 24 20 20 21 22 18 24 21 15 15 12 3 . . . . . . . . . . . . Device 12 | . 12 13 11 20 22 12 9 6 6 7 3 9 10 14 11 12 14 15 14 15 15 18 16 16 Storage 6 | . 14 14 11 11 11 11 9 7 7 7 6 5 5 5 5 5 5 5 5 5 5 4 4 3 Processor 17 | . . . 8 . . 7 9 17 23 23 13 17 20 23 23 23 21 21 20 25 26 23 21 19 Hackware 2 | . . . . . . . . . . . 16 11 5 . . . . 5 5 . . . . 3 Protection 1 | . . . 1 . . . 7 5 . . . 1 2 2 5 3 5 . . . . . . . Energy Cannon 1 | . . . 4 19 22 1 . . . . . . . 2 . . 4 3 4 . . 3 2 2 Ballistic Gun 20 | . 14 24 17 . . 19 26 20 22 16 20 20 21 15 23 22 21 22 21 25 26 19 21 24 Naked Turns 15 | . . . . . . . . . . . . . . . . . . . . . . . . 15 Heaviest Build 173 | 12 30 30 98 98 98 56 107 113 106 100 111 116 132 132 131 133 140 133 149 147 134 141 173 171 Greatest Support 177 | 26 40 40 26 26 26 20 30 38 38 38 38 117 127 150 150 150 150 150 150 150 150 177 177 177 Greatest Overweight (x) 5 | . 1 2 3 3 3 5 5 5 2 2 5 2 1 . . . . . . . . . . 1 Average Overweight (x) . | . . 1 1 3 2 2 2 2 2 2 2 . . . . . . . . . . . . . Largest Inventory Capacity 25 | 8 15 15 25 25 25 20 25 25 25 25 25 25 25 25 25 25 25 25 25 25 25 25 25 25 Average Capacity 23 | 6 10 15 17 25 24 20 24 25 25 25 25 25 25 25 25 25 25 25 25 25 25 25 25 24 Most Carried 25 | 7 14 15 20 20 20 20 25 25 25 25 25 25 25 25 25 25 25 25 25 25 25 25 25 25 Average Carried 22 | 4 9 12 15 18 18 18 22 24 24 24 24 24 24 24 24 24 23 25 24 24 25 22 24 22 Final Capacity 25 | 8 15 15 25 25 20 20 25 25 25 25 25 25 25 25 25 25 25 25 25 25 25 25 25 5 Final Carried 25 | 7 14 15 20 18 20 20 24 25 25 25 25 25 25 24 25 24 25 25 25 25 25 25 25 4 Class Distribution -------------------- 32% | Scavenger-Skirmisher 27% | Scavenger-Mutant 9% | Scavenger-Gunner 8% | Mutant 6% | Scavenger-Executioner 3% | Hacker-Skirmisher 3% | Commander-Skirmisher Dominant Class ---------------- Mutant | -10/Materials Mutant | -10/Mines Scavenger-Mutant | -9/Materials Scavenger-Mutant | -9/Mines Scavenger-Mutant | -9/Exiles Scavenger-Skirmisher | -8/Mines Scavenger-Skirmisher | -8/Materials Scavenger-Skirmisher | -7/Factory Scavenger-Gunner | -7/Lower Caves Scavenger-Mutant | -7/Lower Caves Hacker-Mutant | -6/Factory Hacker-Skirmisher | -5/Factory Commander-Skirmisher | -5/Extension Scavenger-Skirmisher | -5/Cetus Scavenger-Skirmisher | -5/Archives Scavenger-Skirmisher | -5/Hub_04(d) Scavenger-Mutant | -4/Factory Scavenger-Mutant | -4/Upper Caves Scavenger-Mutant | -4/Upper Caves Scavenger-Skirmisher | -4/Warlord Scavenger-Gunner | -3/Proximity Caves Scavenger-Mutant | -3/Research Scavenger-Executioner | -2/Research Scavenger-Mutant | -1/Access Resources | -11 -10 -10 -9 -9 -9 -8 -8 -7 -7 -7 -6 -5 -5 -5 -5 -5 -4 -4 -4 -4 -3 -3 -2 -1 ----------- Run | Scr Mat Min Mat Min Exi Min Mat Fac Low Low Fac Fac Ext Cet Arc Hub Fac Upp Upp War Pro Res Res Acc Matter Collected 12490 | 308 359 337 465 283 . 315 436 834 273 49 492 497 664 476 557 1030 . 202 . 546 269 227 1646 2225 Remotely 5475 | . . . . 103 . . 297 151 127 . 152 282 330 38 477 572 . . . 477 89 167 656 1557 Salvage Created 15096 | 166 587 323 513 214 . 217 524 705 208 28 235 442 1200 832 613 1421 . 143 . 1119 410 227 1525 3444 Parts 743 | 7 31 23 23 8 . 15 30 42 10 . 14 19 55 40 38 74 . 7 . 24 18 12 57 196 Haulers Intercepted 12 | . 2 . 3 . . . 3 1 . . . 1 . . . . . . . . . . 1 1 Recyclers Shooed 8 | . 2 . . . . . . . . . 3 . . . . 2 . . . . . . . 1 Parts Field Recycled . | . . . . . . . . . . . . . . . . . . . . . . . . . Retrieved Matter . | . . . . . . . . . . . . . . . . . . . . . . . . . Parts Self-Destructed 35 | . . . . . . . . . 10 . . . . . . . . 7 . . 18 . . . Prevented 4 | . . . . . . . . . . 1 . . . . . . . 3 . . . . . . Kills | -11 -10 -10 -9 -9 -9 -8 -8 -7 -7 -7 -6 -5 -5 -5 -5 -5 -4 -4 -4 -4 -3 -3 -2 -1 ------- Run | Scr Mat Min Mat Min Exi Min Mat Fac Low Low Fac Fac Ext Cet Arc Hub Fac Upp Upp War Pro Res Res Acc Combat Hostiles Destroyed 194 | . 11 5 7 12 . 4 5 9 4 . 2 3 10 11 4 13 . 2 . 16 5 2 20 49 Melee 1 | . . . . . . . . . . . . . . . . . . . . . . . . 1 Guns 144 | . 11 5 7 . . 2 5 9 1 . . 3 9 4 4 13 . 2 . 12 5 2 19 31 Cannons 11 | . . . . 6 . . . . . . 2 . . 1 . . . . . . . . . 2 AOE 29 | . . . . 5 . 2 . . 2 . . . . 3 . . . . . 2 . . 1 14 Classes Destroyed 25 | 2 5 1 2 2 . 2 . 1 1 1 1 . 1 . . 1 . . . 1 . . 2 2 Worker 19 | . . . 1 . . . 1 2 . . 3 . 1 . . 7 . . . . . . . 4 Builder 20 | . . 3 . . . 1 1 3 . . . . 1 . . 3 . . . . . . . 8 Tunneler 4 | 3 . . . . . 1 . . . . . . . . . . . . . . . . . . Hauler 12 | . 2 . 3 . . . 3 1 . . . 1 . . . . . . . . . . 1 1 Recycler 14 | 1 1 1 1 . . . . 2 . . . 1 3 . . 1 . . . . . 1 . 2 Minesweeper 2 | . . . . . . . . . . 1 . . . . . . . . . . 1 . . . Mechanic 1 | . . . . . . . . . . . 1 . . . . . . . . . . . . . Operator 6 | . 1 . . . . . . . . . . . . . 5 . . . . . . . . . Watcher 9 | . 1 . . . . . 2 1 . . . . . 2 . 1 . . . . . . . 2 Swarmer 26 | . 3 2 2 . . . . 4 . . . . . 1 . . . . . . . . . 14 Saboteur 2 | . . . . . . . . . . . . . . . . . . . . . . . . 2 Grunt 61 | . 8 3 2 3 . 2 2 1 2 . . 2 3 6 . 4 . . . 6 3 1 4 9 Brawler 6 | . . . . . . . . . . . . . . 1 . 1 . . . 2 . . 1 1 Duelist 4 | . . . . . . 1 . . 1 . . . . . . . . . . 1 . . . 1 Protector 2 | . . . . . . . . . . . . . . . . . . . . 1 . . . 1 Sentry 29 | . . . 3 . . . 3 3 . . 2 1 5 . 4 4 . . . . . . 2 2 Demolisher 4 | . . . . 1 . . . . . . . . . . . . . . . . . . 3 . Specialist 4 | . . . . . . . . . . . . . . . . 2 . . . . . . . 2 Hunter 14 | . . . . . . 1 . . . . . . . . . . . . . 1 2 . 4 6 Programmer 18 | . . . . . . . . 1 . . . . . . . 2 . 2 . 3 . 1 . 9 Heavy 1 | . . . . . . . . . . . . . . . . . . . . . . . . 1 Behemoth 5 | . . . . . . . . . 1 . . . 1 . . . . . . 2 . . 1 . Cetus Guard 3 | . . . . . . . . . . . . . . 3 . . . . . . . . . . Striker 4 | . . . . . . . . . . . . . . . . . . . . . . . 4 . Decomposer 1 | . . . . . . . . . . . . . . . . . . 1 . . . . . . Assembled 8 | . . . . 8 . . . . . . . . . . . . . . . . . . . . Thug 1 | . . . . . . . . . . . . . . . . . . . . 1 . . . . Savage 2 | . . . . . . . . . . . . . 1 1 . . . . . . . . . . Martyr 1 | . . . . . . . . . . . . . . . . . . . . . . . . 1 Guerrilla 1 | . . . . . . . . . . . . . . 1 . . . . . . . . . . Troll 1 | . . . . . . . . . . . . . . . . . . . . . . . 1 . Best Kill Streak 19 | 3 4 3 3 8 . 3 3 5 3 1 4 4 5 4 5 8 . 2 . 11 3 2 11 19 Combat Bots Only 15 | . 4 2 3 8 . 3 2 4 3 . 2 1 4 4 2 3 . 2 . 11 3 1 11 15 Max Kills in Single Turn 9 | 1 1 1 2 1 . 1 1 1 2 1 2 2 1 2 1 4 . 1 . 3 1 1 2 9 Gunslinging 1 | . . . . . . . . . . . . 1 . . . 1 . . . 1 . . 1 1 Exploded 6 | . . . . 1 . 1 . . 2 . . . . 2 . . . . . 2 . . 1 6 Melee 1 | . . . . . . . . . . . . . . . . . . . . . . . . 1 Uniques/NPCs Destroyed 1 | . . . . . . . . . . . . . . 1 . . . . . . . . . . A7 (-5/Cetus) Combat | -11 -10 -10 -9 -9 -9 -8 -8 -7 -7 -7 -6 -5 -5 -5 -5 -5 -4 -4 -4 -4 -3 -3 -2 -1 -------- Run | Scr Mat Min Mat Min Exi Min Mat Fac Low Low Fac Fac Ext Cet Arc Hub Fac Upp Upp War Pro Res Res Acc Damage Taken 17743 | . 609 278 284 436 . 641 335 527 119 24 214 358 911 210 528 1693 . 120 355 1238 316 53 2404 6090 Core 1873 | . 155 38 76 124 . 101 31 46 74 . 28 . 25 15 28 194 . . 24 125 . . 232 557 Absorbed by Shields 1930 | . . . . . . . . . . . . . 28 78 . . . . 79 156 31 19 673 866 Reduced by Siege Mode 1209 | . . . . . . . . . . . . . 49 8 51 144 . . . 131 12 . 248 566 Regen/Repaired (Parts) 21 | . . . . . . . . . . . 21 . . . . . . . . . . . . . Core Remaining (%) 75 | 100 . 22 . . . 24 94 . . 82 96 . . . . 73 . . . . 87 100 84 65 Volleys Fired 517 | 6 49 22 30 23 . 20 30 25 3 . 6 14 27 18 27 41 3 4 3 14 8 18 47 79 Largest 7 | 2 2 2 2 2 . 2 3 3 3 . 4 4 4 4 4 4 1 5 1 5 5 5 6 7 Hottest 315 | 60 100 70 136 136 . 136 100 79 100 . 153 99 109 143 116 134 90 171 90 175 175 253 282 315 Shots Fired 1625 | 12 92 44 60 37 . 40 88 72 6 . 24 50 99 51 108 162 3 16 3 58 40 30 185 345 Gun 1468 | 12 87 44 52 . . 31 87 71 4 . 18 48 96 44 108 162 . 15 . 55 40 14 167 313 Cannon 132 | . . . 8 28 . 7 . . 1 . 6 . 3 7 . . 3 1 3 3 . 16 18 28 Launcher 16 | . . . . 6 . 2 . 1 1 . . 2 . . . . . . . . . . . 4 Special 9 | . 5 . . 3 . . 1 . . . . . . . . . . . . . . . . . Kinetic 1394 | 6 44 36 52 . . 31 87 71 4 . 18 48 96 44 108 162 . 15 . 55 40 14 150 313 Thermal 192 | 6 48 8 8 31 . 7 1 . 1 . . . 3 7 . . 3 1 3 3 . 16 18 28 Explosive 16 | . . . . 6 . 2 . 1 1 . . 2 . . . . . . . . . . . 4 Electromagnetic 6 | . . . . . . . . . . . 6 . . . . . . . . . . . . . Entropic 17 | . . . . . . . . . . . . . . . . . . . . . . . 17 . Robot Hit Streak 56 | 4 17 8 10 12 . 5 13 22 3 . 8 11 28 9 42 56 . 13 . 14 21 7 51 40 Robot Miss Streak 5 | 2 2 2 2 4 . 4 3 1 1 . 1 2 3 5 3 2 . 1 . 3 4 2 2 5 Penetration Max 1 | . . . . . . . . . . . . 1 1 1 1 1 . . . 1 . . 1 1 Secondary Targets 47 | . 1 . . . . . 1 1 . . . 1 1 1 2 4 . . . 9 2 . 9 15 Max Gunslinging Chain 2 | . 1 . . . . . 1 1 . . . 1 1 1 1 1 . . . 2 1 . 2 2 Shots Hit Robots 1107 | 7 68 32 41 19 . 28 54 50 4 2 19 33 82 28 79 128 . 13 . 45 22 7 125 221 Core Hits 553 | 5 30 15 17 16 . 12 20 26 7 . 8 13 30 20 30 47 . 4 . 28 11 6 60 148 Critical Kills 52 | . . . . 1 . . 1 3 1 . . 1 3 3 1 2 . . . 6 4 1 14 11 Critical Parts Destroyed 41 | . . . . . . . . . . . . 1 1 . 1 4 . . . 4 3 . 9 18 Critical Strikes 106 | . 2 . . 1 . . 1 3 1 . . 2 5 3 3 6 . . . 11 7 1 29 31 Burn 2 | . 2 . . . . . . . . . . . . . . . . . . . . . . . Meltdown 9 | . . . . 1 . . . . 1 . . . 1 3 . . . . . 2 . . . 1 Destroy 92 | . . . . . . . 1 3 . . . 2 4 . 3 6 . . . 9 7 1 26 30 Detonate 3 | . . . . . . . . . . . . . . . . . . . . . . . 3 . Melee Attacks 27 | . . . . . . . . 9 . 3 8 1 6 . . . . . . . . . . . Impact . | . . . . . . . . . . . . . . . . . . . . . . . . . Slashing 27 | . . . . . . . . 9 . 3 8 1 6 . . . . . . . . . . . Piercing . | . . . . . . . . . . . . . . . . . . . . . . . . . Sneak Attacks 7 | . . . . . . . . 2 . 2 3 . . . . . . . . . . . . . Combat Hostiles . | . . . . . . . . . . . . . . . . . . . . . . . . . Follow-up Attacks . | . . . . . . . . . . . . . . . . . . . . . . . . . Damage Inflicted 36589 | 89 879 422 655 689 . 600 897 1117 345 126 643 890 2834 2472 2037 4520 . 438 . 2510 558 266 4010 9592 Guns 26919 | 89 879 422 553 . . 277 897 939 57 . 308 890 2098 800 2037 4005 . 397 . 1874 558 233 3658 5948 Cannons 2513 | . . . 102 394 . 103 . . 145 . 145 . 363 522 . . . . . 177 . . . 562 Explosions 6277 | . . . . 295 . 220 . 14 143 . . . 198 1150 . 441 . . . 459 . . 352 3005 Melee 594 | . . . . . . . . 164 . 126 190 . 114 . . . . . . . . . . . Ramming 286 | . . . . . . . . . . . . . 61 . . 74 . 41 . . . 33 . 77 Kinetic 25716 | 42 441 360 553 . . 277 897 939 57 . 308 890 2098 800 2037 4005 . 397 . 1874 558 233 3002 5948 Thermal 6901 | 47 438 62 102 394 . 103 . . 145 . . . 561 1672 . . . . . 636 . . 352 2389 Explosive 1850 | . . . . 295 . 220 . 14 143 . . . . . . . . . . . . . . 1178 Electromagnetic 586 | . . . . . . . . . . . 145 . . . . 441 . . . . . . . . Impact . | . . . . . . . . . . . . . . . . . . . . . . . . . Slashing 594 | . . . . . . . . 164 . 126 190 . 114 . . . . . . . . . . . Piercing . | . . . . . . . . . . . . . . . . . . . . . . . . . Entropic 656 | . . . . . . . . . . . . . . . . . . . . . . . 656 . Highest Corruption 11 | . . . 3 3 3 3 . 1 1 1 . . . . . 9 . . . 3 3 . 1 11 Average Corruption 2 | . . . 3 3 3 3 . 1 1 1 . . . . . 1 . . . 2 3 . 1 10 Corruption Purged . | . . . . . . . . . . . . . . . . . . . . . . . . . Corruption Blocked 55 | . . . . . . . . . . . . . . . . . . . . . . . 55 . Effects 55 | . . . 5 5 4 7 . . 4 3 . . . . . 1 . . . . 10 . 2 14 Message Errors 13 | . . . 1 2 . 1 . . 1 . . . . . . . . . . . 1 . 1 6 Matter Fused 15 | . . . 2 2 2 3 . . 2 . . . . . . . . . . . 1 . . 3 Heat Flow Errors 8 | . . . 1 1 . . . . 1 3 . . . . . . . . . . 1 . . 1 Energy Discharges 6 | . . . . . 1 . . . . . . . . . . . . . . . 4 . . 1 Data Loss (minor) 7 | . . . 1 . 1 1 . . . . . . . . . . . . . . 2 . 1 1 Data Loss (major) 1 | . . . . . . . . . . . . . . . . . . . . . 1 . . . Misfires 1 | . . . . . . 1 . . . . . . . . . . . . . . . . . . Alerts 1 | . . . . . . . . . . . . . . . . 1 . . . . . . . . Weapon Failures 3 | . . . . . . 1 . . . . . . . . . . . . . . . . . 2 Overload Shots . | . . . . . . . . . . . . . . . . . . . . . . . . . Overflow Damage 588 | . . . . 11 . 12 . 54 . 62 80 . 122 36 . 11 . 27 . . . . . 173 Projectiles 185 | . . . . 1 . . . . . . . . 79 . . . . . . . . . . 105 Explosions 165 | . . . . 10 . 12 . . . . . . 43 36 . . . . . . . . . 64 Melee 238 | . . . . . . . . 54 . 62 80 . . . . 11 . 27 . . . . . 4 Knockbacks 1 | . . . . . . . . . . . . . . . . 1 . . . . . . . . Impact 1 | . . . . . . . . . . . . . . . . 1 . . . . . . . . Kinetic . | . . . . . . . . . . . . . . . . . . . . . . . . . Secondary . | . . . . . . . . . . . . . . . . . . . . . . . . . Self-Inflicted Damage 436 | . . . . 47 . 83 . . . . . . . . . 188 . . . . . . 44 74 Shots 7 | . . . . 1 . 2 . . . . . . . . . 2 . . . . . . 1 1 Rammed 21 | . . . . . . . . . . . . . 5 . . 4 . 1 . . . 3 1 7 Targets Rammed 21 | . . . . . . . . . . . . . 5 . . 4 . 1 . . . 3 1 7 Kicked . | . . . . . . . . . . . . . . . . . . . . . . . . . Crushed . | . . . . . . . . . . . . . . . . . . . . . . . . . Highest Temperature 418 | . 217 108 180 226 . 63 11 30 251 268 340 157 214 . 188 310 26 173 44 415 367 120 418 343 Average Temperature 81 | . 77 49 30 67 . 22 8 9 127 114 160 62 75 . 87 100 13 87 22 175 174 23 60 99 Received Heat Transfer 2630 | . 309 126 69 148 . 108 216 102 39 . 66 126 166 22 63 369 . . . 84 66 . 94 457 Effects 1 | . . . . . . . . . . . . . . . . 1 . . . . . . . . Energy Bleed 1 | . . . . . . . . . . . . . . . . 1 . . . . . . . . Siege Activations 28 | . . . . . . . . . . . . . 2 2 2 5 . . . 1 2 1 5 8 Total Turns 481 | . . . . . . . . . . . . . 45 19 34 108 . . . 20 20 5 90 140 Longest Duration 53 | . . . . . . . . . . . . . 29 12 20 51 . . . 20 13 5 49 53 Robots Corrupted . | . . . . . . . . . . . . . . . . . . . . . . . . . Combat Hostiles . | . . . . . . . . . . . . . . . . . . . . . . . . . Parts Fried 5 | . . . . . . . . . . . 2 . . . . 3 . . . . . . . . Impact Corruptions 5 | . . . . . . . . . . . . . . . . 1 . 3 . . . . . 1 Robots Melted 9 | . . . . 1 . . . . 1 . . . 1 3 . . . . . 2 . . . 1 Combat Hostiles 9 | . . . . 1 . . . . 1 . . . 1 3 . . . . . 2 . . . 1 Parts Melted 19 | . 2 1 . . . . . . 6 . . . 1 2 . . . . . 5 1 . . 1 Heat Transferred 8293 | 100 1335 185 185 703 . 185 . . 80 . . . 480 1640 . . . . . 720 . . 200 2480 Parts Sabotaged 4 | . . . . . . . . . . . . . . . . . . . . . . . . 4 Parts Stolen . | . . . . . . . . . . . . . . . . . . . . . . . . . Parts Stripped . | . . . . . . . . . . . . . . . . . . . . . . . . . Power Chain Reactions 1 | . . . . . . . . . . . . . . . . 1 . . . . . . . . Missiles Intercepted . | . . . . . . . . . . . . . . . . . . . . . . . . . Alert | -11 -10 -10 -9 -9 -9 -8 -8 -7 -7 -7 -6 -5 -5 -5 -5 -5 -4 -4 -4 -4 -3 -3 -2 -1 ------- Run | Scr Mat Min Mat Min Exi Min Mat Fac Low Low Fac Fac Ext Cet Arc Hub Fac Upp Upp War Pro Res Res Acc Peak Influence 1761 | 20 263 132 359 345 . 121 431 328 . . 101 231 428 952 563 985 488 . . . . 125 749 1761 Initial 482 | . 13 17 51 139 . . . 105 . . 18 49 112 239 380 196 482 . . . . 84 42 448 Average 288 | 7 115 85 213 223 . 101 257 179 . . 53 107 229 642 491 318 484 . . . . 87 289 804 Maximum Alert Level 5 | . 1 . 1 1 . . 2 1 . . . 1 2 3 2 3 2 . . . . . 3 5 Low Security (%) 50 | 100 79 100 41 53 . 100 14 64 . . 100 89 48 . . 9 . . . . . 100 55 . Level 1 22 | . 20 . 58 46 . . 80 35 . . . 10 35 14 5 62 . . . . . . 11 . Level 2 18 | . . . . . . . 5 . . . . . 15 39 94 26 100 . . . . . 25 51 Level 3 5 | . . . . . . . . . . . . . . 46 . 1 . . . . . . 8 22 Level 4 2 | . . . . . . . . . . . . . . . . . . . . . . . . 23 Level 5 . | . . . . . . . . . . . . . . . . . . . . . . . . 2 High Security . | . . . . . . . . . . . . . . . . . . . . . . . . . Max Security . | . . . . . . . . . . . . . . . . . . . . . . . . . Squads Dispatched 34 | . 4 . 1 . . . 3 4 . . 3 2 . . . 4 2 . . . . 1 2 8 Investigation 12 | . 1 . . . . . 3 2 . . 3 . . . . 1 1 . . . . . 1 . Extermination 6 | . . . . . . . . 1 . . . . . . . 1 . . . . . 1 . 3 Reinforcement 11 | . 3 . 1 . . . . . . . . 2 . . . 2 1 . . . . . 1 1 Assault 3 | . . . . . . . . . . . . . . . . . . . . . . . . 3 Garrison 2 | . . . . . . . . 1 . . . . . . . . . . . . . . . 1 Intercept . | . . . . . . . . . . . . . . . . . . . . . . . . . Searches Triggered . | . . . . . . . . . . . . . . . . . . . . . . . . . Construction Impeded 1 | . . . . . . . . . . . . . . . . 1 . . . . . . . . Haulers Reinforced 3 | . . . . . . . . . . . . 2 . . . . . . . . . . 1 . Active Scanning Responses . | . . . . . . . . . . . . . . . . . . . . . . . . . Cargo Convoy Interrupts . | . . . . . . . . . . . . . . . . . . . . . . . . . Stealth | -11 -10 -10 -9 -9 -9 -8 -8 -7 -7 -7 -6 -5 -5 -5 -5 -5 -4 -4 -4 -4 -3 -3 -2 -1 --------- Run | Scr Mat Min Mat Min Exi Min Mat Fac Low Low Fac Fac Ext Cet Arc Hub Fac Upp Upp War Pro Res Res Acc Distress Signals 24 | . 1 . . . . . 3 . . . . . 2 1 . 2 1 . . . . 1 12 1 Communications Jammed 45 | . . . . . . . . . . . . . . . . . . . . . . . 5 40 Distress Signals 33 | . . . . . . . . . . . . . . . . . . . . . . . 5 28 Times Spotted 333 | . 24 7 11 14 . 4 10 17 4 . 3 4 19 17 11 23 2 2 2 37 5 9 28 80 Peak Tracking Total 17 | . 3 3 5 5 . 3 3 4 3 . 2 2 4 5 1 5 5 1 2 14 3 4 7 17 Tactical Retreats 15 | . 2 1 1 2 . . 1 1 . . . . . 1 . 1 . . . 1 . . . 4 Traps | -11 -10 -10 -9 -9 -9 -8 -8 -7 -7 -7 -6 -5 -5 -5 -5 -5 -4 -4 -4 -4 -3 -3 -2 -1 ------- Run | Scr Mat Min Mat Min Exi Min Mat Fac Low Low Fac Fac Ext Cet Arc Hub Fac Upp Upp War Pro Res Res Acc Traps Triggered 12 | . . . . . . . 2 5 . . 2 . . . . 3 . . . . . . . . Indirectly 2 | . . . . . . . . . . . . . . . . 2 . . . . . . . . Trap Hack Attempts . | . . . . . . . . . . . . . . . . . . . . . . . . . Triggered . | . . . . . . . . . . . . . . . . . . . . . . . . . Disarmed . | . . . . . . . . . . . . . . . . . . . . . . . . . Reprogrammed . | . . . . . . . . . . . . . . . . . . . . . . . . . Reused . | . . . . . . . . . . . . . . . . . . . . . . . . . Traps Extracted . | . . . . . . . . . . . . . . . . . . . . . . . . . Installed . | . . . . . . . . . . . . . . . . . . . . . . . . . Triggered 14 | . . . . . . . . . . . . . . . . . . 1 . 13 . . . . Machines | -11 -10 -10 -9 -9 -9 -8 -8 -7 -7 -7 -6 -5 -5 -5 -5 -5 -4 -4 -4 -4 -3 -3 -2 -1 ---------- Run | Scr Mat Min Mat Min Exi Min Mat Fac Low Low Fac Fac Ext Cet Arc Hub Fac Upp Upp War Pro Res Res Acc Machines Disabled 27 | . . . . . . . . . . . . 1 2 2 3 13 . . . . . . 4 2 Max in Single Turn 6 | . . . . . . . . . . . . 1 . 1 1 6 . . . . . . 1 1 Garrison Access 3 | . . . . . . . 1 . . . . . . . . . . . . . . . 2 . Network Hub 2 | . . . . . . . . . . . . . . . . 2 . . . . . . . . Energy Cycler 1 | . . . . . . . . . . . . . . . . . . . . . . . . 1 Machines Sabotaged . | . . . . . . . . . . . . . . . . . . . . . . . . . Garrisons Compromised . | . . . . . . . . . . . . . . . . . . . . . . . . . Overloaded Fab Kills . | . . . . . . . . . . . . . . . . . . . . . . . . . Hacking | -11 -10 -10 -9 -9 -9 -8 -8 -7 -7 -7 -6 -5 -5 -5 -5 -5 -4 -4 -4 -4 -3 -3 -2 -1 --------- Run | Scr Mat Min Mat Min Exi Min Mat Fac Low Low Fac Fac Ext Cet Arc Hub Fac Upp Upp War Pro Res Res Acc Machines Accessed 57 | . 7 . 4 1 1 1 3 6 . 1 7 3 10 . . 5 1 . 1 1 . 1 1 3 Terminals 40 | . 6 . 3 . . 1 1 6 . . 3 2 10 . . 5 1 . . . . . 1 1 Fabricators 2 | . . . . . . . . . . . 1 1 . . . . . . . . . . . . Repair Stations 2 | . . . . . . . . . . . 1 . . . . . . . . . . . . 1 Recycling Units 5 | . 1 . 1 . . . 1 . . . 2 . . . . . . . . . . . . . Scanalyzers . | . . . . . . . . . . . . . . . . . . . . . . . . . Garrison Access 3 | . . . . . . . 1 . . . . . . . . . . . . . . 1 . 1 Total Hacks 150 | . 21 . 17 1 1 2 9 19 . 1 15 5 20 . . 13 3 . 1 1 . 6 5 10 Successful 68 | . 13 . 9 1 1 . 4 7 . 1 9 4 8 . . 7 . . 1 1 . . . 2 Failed 80 | . 7 . 8 . . 2 5 11 . . 6 1 12 . . 6 3 . . . . 6 5 8 Catastrophic 13 | . . . . . . . . 2 . . 1 . 1 . . 2 2 . . . . 2 . 3 Database Lockouts 2 | . 1 . . . . . . 1 . . . . . . . . . . . . . . . . Manual 82 | . 19 . 15 . 2 2 6 17 . . 4 1 1 2 . 6 3 . . . . 1 . 3 Terminals 110 | . 20 . 11 . . 2 2 19 . . 7 3 20 . . 13 3 . . . . . 5 5 Fabricators 6 | . . . . . . . . . . . 4 2 . . . . . . . . . . . . Repair Stations 5 | . . . . . . . . . . . 2 . . . . . . . . . . . . 3 Recycling Units 12 | . 1 . 6 . . . 3 . . . 2 . . . . . . . . . . . . . Scanalyzers . | . . . . . . . . . . . . . . . . . . . . . . . . . Garrison Access 12 | . . . . . . . 4 . . . . . . . . . . . . . . 6 . 2 Terminal Hacks 35 | . 7 . 3 1 1 . . 3 . 1 2 2 8 . . 5 . . 1 1 . . . . Part Schematic 1 | . . . . . . . . 1 . . . . . . . . . . . . . . . . Robot Analysis 3 | . 2 . . . . . . 1 . . . . . . . . . . . . . . . . Prototype ID Bank 1 | . . . . . . . . . . . . . . . . 1 . . . . . . . . Open Door 13 | . . . . 1 . . . . . 1 . 1 8 . . . . . 1 1 . . . . Level Access Points 1 | . . . . . . . . . . . . . . . . 1 . . . . . . . . Branch Access Points 1 | . . . . . . . . . . . 1 . . . . . . . . . . . . . Terminal Index 4 | . 1 . 1 . . . . 1 . . . 1 . . . . . . . . . . . . Unreport Threat 3 | . 2 . . . . . . . . . . . . . . 1 . . . . . . . . Locate Traps 6 | . 2 . 2 . . . . . . . 1 . . . . 1 . . . . . . . . Zone Layout 1 | . . . . . . . . . . . . . . . . 1 . . . . . . . . EX-Prototype ID Bank 1 | . . . . . 1 . . . . . . . . . . . . . . . . . . . Fabricator Hacks 3 | . . . . . . . . . . . 2 1 . . . . . . . . . . . . Network Status 1 | . . . . . . . . . . . . 1 . . . . . . . . . . . . Load Schematic 1 | . . . . . . . . . . . 1 . . . . . . . . . . . . . Build 1 | . . . . . . . . . . . 1 . . . . . . . . . . . . . Repair Station Hacks 3 | . . . . . . . . . . . 2 . . . . . . . . . . . . 1 Scan Component 2 | . . . . . . . . . . . 1 . . . . . . . . . . . . 1 Repair 1 | . . . . . . . . . . . 1 . . . . . . . . . . . . . Recycling Unit Hacks . | . . . . . . . . . . . . . . . . . . . . . . . . . Scanalyzer . | . . . . . . . . . . . . . . . . . . . . . . . . . Garrison Access Hacks . | . . . . . . . . . . . . . . . . . . . . . . . . . Unauthorized Hacks 27 | . 6 . 6 . . . 4 4 . . 3 1 . . . 2 . . . . . . . 1 Terminals 19 | . 5 . 4 . . . 1 4 . . 1 1 . . . 2 . . . . . . . 1 Track 3 | . 1 . 1 . . . . . . . . . . . . 1 . . . . . . . . Assimilate 3 | . 1 . . . . . . 2 . . . . . . . . . . . . . . . . Botnet 10 | . 2 . 2 . . . 1 1 . . 1 1 . . . 1 . . . . . . . 1 Operators 3 | . 1 . 1 . . . . 1 . . . . . . . . . . . . . . . . Fabricators . | . . . . . . . . . . . . . . . . . . . . . . . . . Repair Stations . | . . . . . . . . . . . . . . . . . . . . . . . . . Recycling Units 7 | . 1 . 2 . . . 2 . . . 2 . . . . . . . . . . . . . Monitor 1 | . . . . . . . 1 . . . . . . . . . . . . . . . . . Recyclers 2 | . . . 1 . . . 1 . . . . . . . . . . . . . . . . . Mask 1 | . . . 1 . . . . . . . . . . . . . . . . . . . . . Tunnel 3 | . 1 . . . . . . . . . 2 . . . . . . . . . . . . . Scanalyzers . | . . . . . . . . . . . . . . . . . . . . . . . . . Garrison Access 1 | . . . . . . . 1 . . . . . . . . . . . . . . . . . Jam 1 | . . . . . . . 1 . . . . . . . . . . . . . . . . . Data Cores Recovered . | . . . . . . . . . . . . . . . . . . . . . . . . . Used . | . . . . . . . . . . . . . . . . . . . . . . . . . Hacking Detections 44 | . 6 . 4 . . 1 3 6 . . 5 2 5 1 . 5 1 . . . . 1 1 3 Full Trace Events 5 | . . . . . . . . 2 . . 1 . . . . . 1 . . . . . 1 . Feedback Events . | . . . . . . . . . . . . . . . . . . . . . . . . . Feedback Blocked . | . . . . . . . . . . . . . . . . . . . . . . . . . Robot Schematics Acquired . | . . . . . . . . . . . . . . . . . . . . . . . . . Robots Built . | . . . . . . . . . . . . . . . . . . . . . . . . . Authchips . | . . . . . . . . . . . . . . . . . . . . . . . . . Time . | . . . . . . . . . . . . . . . . . . . . . . . . . Total Robot Build Rating . | . . . . . . . . . . . . . . . . . . . . . . . . . Part Schematics Acquired 1 | . . . . . . . . 1 . . . . . . . . . . . . . . . . Parts Built 2 | . . . . . . . . . . . 2 . . . . . . . . . . . . . Authchips 1 | . . . . . . . . . . . 1 . . . . . . . . . . . . . Time 42 | . . . . . . . . . . . 42 . . . . . . . . . . . . . Total Part Build Rating 8 | . . . . . . . . . . . 8 . . . . . . . . . . . . . Parts Repaired 1 | . . . . . . . . . . . 1 . . . . . . . . . . . . . Time 22 | . . . . . . . . . . . 22 . . . . . . . . . . . . . Parts Recycled . | . . . . . . . . . . . . . . . . . . . . . . . . . Recycled Matter . | . . . . . . . . . . . . . . . . . . . . . . . . . Retrieved Matter . | . . . . . . . . . . . . . . . . . . . . . . . . . Retrieved Components . | . . . . . . . . . . . . . . . . . . . . . . . . . Parts Scanalyzed . | . . . . . . . . . . . . . . . . . . . . . . . . . Part Schematics Acquired . | . . . . . . . . . . . . . . . . . . . . . . . . . Parts Damaged . | . . . . . . . . . . . . . . . . . . . . . . . . . Bothacking | -11 -10 -10 -9 -9 -9 -8 -8 -7 -7 -7 -6 -5 -5 -5 -5 -5 -4 -4 -4 -4 -3 -3 -2 -1 ------------ Run | Scr Mat Min Mat Min Exi Min Mat Fac Low Low Fac Fac Ext Cet Arc Hub Fac Upp Upp War Pro Res Res Acc Used RIF Installer . | . . . . . . . . . . . . . . . . . . . . . . . . . Robots Hacked . | . . . . . . . . . . . . . . . . . . . . . . . . . Non-combat . | . . . . . . . . . . . . . . . . . . . . . . . . . Combat . | . . . . . . . . . . . . . . . . . . . . . . . . . Robot Hacks Applied . | . . . . . . . . . . . . . . . . . . . . . . . . . Relay Couplers Released 12 | . . . . . . . . . . . . . . . . . . . . . . 4 8 . Machine Destruction 2 | . . . . . . . . . . . . . . . . . . . . . . . 2 . Programmers 10 | . . . . . . . . . . . . . . . . . . . . . . 4 6 . Fabnet Peak Effective % . | . . . . . . . . . . . . . . . . . . . . . . . . . Robots Rewired 9 | . . . . . . . . . . . . . 9 . . . . . . . . . . . Allies Hacked 1 | . . . . . . . . 1 . . . . . . . . . . . . . . . . Hacks Repelled . | . . . . . . . . . . . . . . . . . . . . . . . . . Allies | -11 -10 -10 -9 -9 -9 -8 -8 -7 -7 -7 -6 -5 -5 -5 -5 -5 -4 -4 -4 -4 -3 -3 -2 -1 -------- Run | Scr Mat Min Mat Min Exi Min Mat Fac Low Low Fac Fac Ext Cet Arc Hub Fac Upp Upp War Pro Res Res Acc Total Allies 19 | . . . . . . . . 1 . . . . 18 . . . . . . . . . . . Largest Group 13 | . . . . . . . . 1 1 1 . . 13 13 1 . . . . . . . . . Highest-Rated Group 496 | . . . . . . . . 10 10 10 . . 496 496 26 . . . . . . . . . Highest-Rated Ally 159 | . . . . . . . . 10 10 10 . . 159 152 26 . . . . . . . . . Total Orders 8 | . . . . . . . . 2 4 . . . . 2 . . . . . . . . . . STAY 4 | . . . . . . . . 1 2 . . . . 1 . . . . . . . . . . FOLLOW 4 | . . . . . . . . 1 2 . . . . 1 . . . . . . . . . . Ally Attacks 148 | . . . . . . . . . . . . . 99 49 . . . . . . . . . . Total Damage 3313 | . . . . . . . . . . . . . 2236 1077 . . . . . . . . . . Kills 22 | . . . . . . . . . . . . . 10 12 . . . . . . . . . . Allies Corrupted . | . . . . . . . . . . . . . . . . . . . . . . . . . Allies Melted 2 | . . . . . . . . . . . . . . . . . . . . . . . 2 . Intel | -11 -10 -10 -9 -9 -9 -8 -8 -7 -7 -7 -6 -5 -5 -5 -5 -5 -4 -4 -4 -4 -3 -3 -2 -1 ------- Run | Scr Mat Min Mat Min Exi Min Mat Fac Low Low Fac Fac Ext Cet Arc Hub Fac Upp Upp War Pro Res Res Acc Robot Analysis Total 3 | . 2 . . . . . . 1 . . . . . . . . . . . . . . . . Derelict Logs Recovered 5 | . . 2 . . . . . . 1 . . . . . . . . 1 1 . . . . . Drone Launches . | . . . . . . . . . . . . . . . . . . . . . . . . . Drone Recoveries . | . . . . . . . . . . . . . . . . . . . . . . . . . Exploration | -11 -10 -10 -9 -9 -9 -8 -8 -7 -7 -7 -6 -5 -5 -5 -5 -5 -4 -4 -4 -4 -3 -3 -2 -1 ------------- Run | Scr Mat Min Mat Min Exi Min Mat Fac Low Low Fac Fac Ext Cet Arc Hub Fac Upp Upp War Pro Res Res Acc Turns Passed 13633 | 74 644 345 390 256 334 423 498 1072 527 310 647 319 1157 394 268 689 206 296 300 1303 313 536 1197 1135 Spaces Moved 7684 | 48 466 222 220 117 248 286 266 712 418 248 458 156 554 161 94 285 119 174 178 754 167 277 553 503 Core 45 | 17 . . . . . . . . . . . . . . . . . . . . . . . 28 Treads 3899 | . 3 21 . . . . . . . . . 84 554 161 94 285 119 174 178 754 167 277 553 475 Legs . | . . . . . . . . . . . . . . . . . . . . . . . . . Wheels 3740 | 31 463 201 220 117 248 286 266 712 418 248 458 72 . . . . . . . . . . . . Hover . | . . . . . . . . . . . . . . . . . . . . . . . . . Flight . | . . . . . . . . . . . . . . . . . . . . . . . . . Fastest Speed 50 | 50 80 105 105 135 120 110 110 116 120 120 120 120 163 160 160 160 160 160 160 160 160 163 163 50 Average Speed 139 | 73 94 110 111 135 133 116 124 121 120 120 120 143 164 163 160 160 160 160 160 160 160 163 163 155 Slowest Speed 243 | 90 160 160 135 135 135 155 155 155 120 120 120 163 243 166 160 160 160 160 160 160 160 166 166 237 Overloaded Moves . | . . . . . . . . . . . . . . . . . . . . . . . . . Propulsion Burnouts . | . . . . . . . . . . . . . . . . . . . . . . . . . Robots Hopped . | . . . . . . . . . . . . . . . . . . . . . . . . . Cave-ins Triggered . | . . . . . . . . . . . . . . . . . . . . . . . . . Exploration Rate (%) 42 | 4 88 51 25 31 64 71 25 22 63 30 17 6 87 60 85 45 9 45 43 84 48 11 37 20 Regions Visited 24 Branch Regions 14 Pre-discovered Areas 4 | . 1 . . . . . . . . . 2 . . . . . . . 1 . . . . . Known Exits Taken 6 | . . . 1 . 1 1 . . . . 1 . . . . 1 . . . . . 1 . . Unknown Exits Taken 18 | 1 1 1 . 1 . . 1 1 1 1 . 1 1 1 1 . 1 1 1 1 1 . 1 . Scrap Searched 7 | . . . . . . 3 . . 2 . . . . . . . . 2 . . . . . . Spaces Dug 106 | . 5 . . 3 . . 1 5 . 1 4 1 . . . . 3 1 3 . . 14 17 48 Terrain Destroyed 866 | . 5 . . 39 . 27 1 13 9 1 4 22 13 72 17 384 3 6 3 23 27 16 45 136 Melee 11 | . . . . . . . . 5 . 1 4 1 . . . . . . . . . . . . Projectile 221 | . 5 . . 3 . 1 1 . . . . 2 . 10 17 42 3 6 3 19 27 16 32 34 AOE 629 | . . . . 36 . 26 . 8 9 . . 19 13 62 . 342 . . . 4 . . 13 97 Terrain Rammed . | . . . . . . . . . . . . . . . . . . . . . . . . . Walls Destroyed . | . . . . . . . . . . . . . . . . . . . . . . . . . Machines Disabled . | . . . . . . . . . . . . . . . . . . . . . . . . . Actions | -11 -10 -10 -9 -9 -9 -8 -8 -7 -7 -7 -6 -5 -5 -5 -5 -5 -4 -4 -4 -4 -3 -3 -2 -1 --------- Run | Scr Mat Min Mat Min Exi Min Mat Fac Low Low Fac Fac Ext Cet Arc Hub Fac Upp Upp War Pro Res Res Acc Total 9424 | 72 562 273 309 167 251 336 361 844 433 256 524 220 721 254 148 410 130 181 189 820 191 333 743 696 Wait 169 | . 5 7 . 13 . 10 7 15 . . 4 6 7 9 5 29 . 1 2 5 6 8 8 22 Move 7659 | 47 465 221 219 116 247 285 265 711 417 247 457 155 553 160 93 284 118 173 177 753 166 276 552 502 Hop . | . . . . . . . . . . . . . . . . . . . . . . . . . Pick Up 179 | 8 10 6 12 . 2 6 15 12 . 2 10 9 8 10 5 5 3 . 2 12 . 7 22 13 Fast Attach 72 | 6 1 . 7 1 . 2 2 9 2 . 2 2 3 7 2 4 . . . 3 . 1 13 5 Attach 124 | 3 2 5 9 3 . 7 5 5 1 1 5 5 7 14 1 3 2 . 1 10 . 5 13 17 Detach 56 | 2 2 1 6 1 . 2 2 2 1 . 1 . 7 9 . 2 . . . 3 . 2 11 2 Swap 347 | . 21 10 14 10 1 2 23 28 7 1 16 18 19 7 9 31 4 2 3 11 11 9 50 40 Drop 169 | . 7 1 12 . 1 2 12 20 2 2 7 10 11 20 6 7 . . 1 9 . 4 26 9 Fire 517 | 6 49 22 30 23 . 20 30 25 3 . 6 14 27 18 27 41 3 4 3 14 8 18 47 79 Melee 27 | . . . . . . . . 9 . 3 8 1 6 . . . . . . . . . . . Ram . | . . . . . . . . . . . . . . . . . . . . . . . . . Kick . | . . . . . . . . . . . . . . . . . . . . . . . . . Crush 21 | . . . . . . . . . . . . . 5 . . 4 . 1 . . . 3 1 7 Escape Stasis 16 | . . . . . . . . 8 . . 8 . . . . . . . . . . . . . Rewire 68 | . . . . . . . . . . . . . 68 . . . . . . . . . . . Trap . | . . . . . . . . . . . . . . . . . . . . . . . . . Miscellaneous . | . . . . . . . . . . . . . . . . . . . . . . . . . Route ------- -11/Scrapyard -10/Materials (discovered 4 exits: *Mat x3 / [*Min]) -10/Mines -9/Materials (discovered 2 exits: Mat / *Min) -9/Mines (discovered 2 exits: *Mat / *Exi) -9/Exiles (discovered 2 exits: *Min x2) -8/Mines -8/Materials -7/Factory -7/Lower Caves -7/Lower Caves -6/Factory (discovered 3 exits: *Fac / Low x2) -5/Factory -5/Extension (discovered 2 exits: *Fac / *Cet) -5/Cetus (discovered 2 exits: *Fac / [*Arc]) -5/Archives (discovered 3 exits: *Fac / *Hub x2) -5/Hub_04(d) (discovered 4 exits: *Fac x4) -4/Factory -4/Upper Caves -4/Upper Caves -4/Warlord -3/Proximity Caves -3/Research (discovered 2 exits: *Res x2) -2/Research (discovered 2 exits: *Acc / *Tes) -1/Access To Epsilon Eridani History --------- Turn | Location | Event 17 | -11/Scrapyard | Discovered new exit (range 16) 75 | -11/Scrapyard | Entered Materials 207 | -10/Materials | Discovered new exit (range 16) 303 | -10/Materials | Discovered new exit (range 16) 316 | -10/Materials | Build established: Mutant 460 | -10/Materials | Discovered new exit (range 15) 614 | -10/Materials | Core integrity fell below 50% 667 | -10/Materials | Central database locked down 686 | -10/Materials | Discovered new exit (range 9) 719 | -10/Materials | Entered Mines 966 | -10/Mines | Discovered new exit (range 5) 1040 | -10/Mines | Learned 2 Materials zone layouts 1064 | -10/Mines | Entered Materials 1064 | -9/Materials | Evolved 2 slots: Propulsion x1, Utility x1 1065 | -9/Materials | Identified exit to Mines 1066 | -9/Materials | Identified exit to Materials 1454 | -9/Materials | Entered Mines 1514 | -9/Mines | Met a Derelict bent on vengeance 1515 | -9/Mines | Found the Drone Emporium 1555 | -9/Mines | Discovered exit to Materials (range 9) 1573 | -9/Mines | Assembled infested the area 1678 | -9/Mines | Discovered new exit (range 6) 1705 | -9/Mines | Deemed a non-threat by the Exiles lab entrance 1710 | -9/Mines | Entered Exiles 1711 | -9/Exiles | Identified exit to Mines 1714 | -9/Exiles | Destroyed 8 combat bots 1743 | -9/Exiles | Met 8R-AWN 1754 | -9/Exiles | Build established: Scavenger-Mutant 1763 | -9/Exiles | Met EX-HEX 1843 | -9/Exiles | Met EX-BIN 1858 | -9/Exiles | Aligned with FarCom system 1859 | -9/Exiles | Given EX-Vault access code 1890 | -9/Exiles | Opened EX-Vault 1901 | -9/Exiles | Found YOLO Cannon 1930 | -9/Exiles | Warned to stay clear of 0b10 Research branches 1968 | -9/Exiles | Met EX-DEC 2035 | -9/Exiles | Discovered exit to Mines (range 10) 2044 | -9/Exiles | Left Exiles lab with YOLO Cannon 2044 | -9/Exiles | Entered Mines 2046 | -8/Mines | Core integrity fell below 50% 2085 | -8/Mines | Lost 4 parts (2n1u1w) 2444 | -8/Mines | Build established: Scavenger-Skirmisher 2461 | -8/Mines | Discovered exit to Materials (range 9) 2467 | -8/Mines | Entered Materials 2467 | -8/Materials | Evolved 2 slots: Utility x1, Weapon x1 2913 | -8/Materials | Discovered new exit (range 6) 2965 | -8/Materials | Entered Factory 2965 | -7/Factory | Evolved 2 slots: Propulsion x1, Utility x1 3011 | -7/Factory | Garrison activated, responded to threat 3792 | -7/Factory | Central database locked down 3914 | -7/Factory | Discovered new exit (range 11) 4037 | -7/Factory | Entered Lower Caves 4037 | -7/Lower Caves | Accompanied by 1 ally 4046 | -7/Lower Caves | Learned Factory stockpile data 4335 | -7/Lower Caves | Build established: Scavenger-Gunner 4393 | -7/Lower Caves | Encountered a Warlord checkpoint 4499 | -7/Lower Caves | Spotted B-75 Beast 4504 | -7/Lower Caves | Destroyed B-75 Beast 4552 | -7/Lower Caves | Discovered new exit (range 13) 4564 | -7/Lower Caves | Entered another Lower Caves area 4564 | -7/Lower Caves | Accompanied by 1 ally 4861 | -7/Lower Caves | Discovered new exit (range 12) 4872 | -7/Lower Caves | Build established: Scavenger-Mutant 4874 | -7/Lower Caves | Entered Factory 4874 | -6/Factory | Evolved 2 slots: Utility x1, Weapon x1 5209 | -6/Factory | Repaired Imp. Salvage Targeting Computer 5222 | -6/Factory | Build established: Hacker-Mutant 5350 | -6/Factory | Fabricated Adv. Terrain Scan Processor (x2) 5395 | -6/Factory | Discovered new exit (range 10) 5454 | -6/Factory | Identified exit to Factory 5489 | -6/Factory | Identified exit to Lower Caves 5521 | -6/Factory | Entered another Factory area 5521 | -5/Factory | Evolved 2 slots: Utility x2 5677 | -5/Factory | Discovered new exit (range 13) 5840 | -5/Factory | Entered Extension 5974 | -5/Extension | Build established: Hacker-Skirmisher 6227 | -5/Extension | Rescued A7 6315 | -5/Extension | Rescued a captive Derelict 6322 | -5/Extension | Rescued a captive Derelict 6344 | -5/Extension | Rescued a captive Derelict 6383 | -5/Extension | Rescued a captive Derelict 6389 | -5/Extension | Rescued a captive Derelict 6563 | -5/Extension | Spotted B-75 Beast 6583 | -5/Extension | Destroyed B-75 Beast 6587 | -5/Extension | Build established: Commander-Skirmisher 6589 | -5/Extension | Spotted B-75 Beast 6597 | -5/Extension | Allies destroyed B-75 Beast 6703 | -5/Extension | Rescued a captive Derelict 6704 | -5/Extension | Rescued a captive Derelict 6738 | -5/Extension | Rescued a captive Derelict 6889 | -5/Extension | Rescued a captive Derelict 6890 | -5/Extension | Rescued a captive Derelict 6963 | -5/Extension | Discovered new exit (range 13) 6968 | -5/Extension | Discovered new exit (range 6) 6997 | -5/Extension | Entered Cetus 6997 | -5/Cetus | Accompanied by 13 allies (A7) 7002 | -5/Cetus | Acquired a Cetus Manufacturing Module code from A7 7015 | -5/Cetus | Spotted Cetus Guard 7015 | -5/Cetus | Spotted Cetus Guard 7019 | -5/Cetus | Spotted Cetus Guard 7019 | -5/Cetus | Destroyed Cetus Guard 7025 | -5/Cetus | Spotted Cetus Guard 7029 | -5/Cetus | Allies destroyed Cetus Guard 7034 | -5/Cetus | Allies destroyed Cetus Guard 7038 | -5/Cetus | Allies destroyed Cetus Guard 7056 | -5/Cetus | Cetus Manufacturing Module disabled 7150 | -5/Cetus | Failed to start Cetus Manufacturing Module 7160 | -5/Cetus | Discovered new exit (range 21) 7197 | -5/Cetus | Spotted Cetus Guard 7197 | -5/Cetus | Spotted Cetus Guard 7197 | -5/Cetus | Spotted Cetus Guard 7197 | -5/Cetus | Spotted Cetus Guard 7201 | -5/Cetus | Destroyed Cetus Guard 7204 | -5/Cetus | Allies destroyed Cetus Guard 7205 | -5/Cetus | Discovered new exit (range 22) 7220 | -5/Cetus | Destroyed Cetus Guard 7228 | -5/Cetus | Allies destroyed Cetus Guard 7241 | -5/Cetus | Met Revision 17 7339 | -5/Cetus | Destroyed A7 7359 | -5/Cetus | Extracted ID and sensor layout for unrecognized location from A7's data core 7391 | -5/Cetus | Entered Archives 7391 | -5/Archives | Accompanied by 1 ally 7474 | -5/Archives | Discovered new exit (range 22) 7492 | -5/Archives | Discovered new exit (range 22) 7511 | -5/Archives | Discovered new exit (range 22) 7659 | -5/Archives | Entered Hub_04(d) 7773 | -5/Hub_04(d) | Build established: Scavenger-Skirmisher 7873 | -5/Hub_04(d) | Identified exit to Factory 8332 | -5/Hub_04(d) | Network Hub disabled 8336 | -5/Hub_04(d) | Network Hub disabled 8348 | -5/Hub_04(d) | Entered Factory 8348 | -4/Factory | Evolved 2 slots: Utility x1, Weapon x1 8497 | -4/Factory | Discovered new exit (range 17) 8554 | -4/Factory | Entered Upper Caves 8612 | -4/Upper Caves | Build established: Scavenger-Mutant 8801 | -4/Upper Caves | Discovered new exit (range 20) 8819 | -4/Upper Caves | Learned location of 1 exit from Research 8850 | -4/Upper Caves | Entered another Upper Caves area 8860 | -4/Upper Caves | Learned location of Testing (-2) 9030 | -4/Upper Caves | Encountered a Warlord checkpoint 9127 | -4/Upper Caves | Discovered new exit (range 6) 9150 | -4/Upper Caves | Entered Warlord 9195 | -4/Warlord | Discovered new exit (range 13) 9415 | -4/Warlord | Build established: Scavenger-Skirmisher 9926 | -4/Warlord | Warlord's base attacked by MAIN.C 10127 | -4/Warlord | Found Prototype Energy Gun 10127 | -4/Warlord | Identified Vortex Rifle 10130 | -4/Warlord | Found Vortex Rifle 10219 | -4/Warlord | Met Warlord 10276 | -4/Warlord | Warlord forces counterattacked 10289 | -4/Warlord | Destroyed B-90 Cyclops 10293 | -4/Warlord | Spotted Striker 10294 | -4/Warlord | Spotted B-86 Titan 10303 | -4/Warlord | Destroyed B-86 Titan 10339 | -4/Warlord | Lost 3 parts (3w) 10358 | -4/Warlord | Spotted Striker 10369 | -4/Warlord | Spotted Executioner 10413 | -4/Warlord | Destroyed 11 combat bots 10414 | -4/Warlord | Found Prototype Processor 10439 | -4/Warlord | Spotted Striker 10453 | -4/Warlord | Entered Proximity Caves 10565 | -3/Proximity Caves | Build established: Scavenger-Gunner 10740 | -3/Proximity Caves | Discovered new exit (range 18) 10766 | -3/Proximity Caves | Entered Research 10766 | -3/Research | Evolved 2 slots: Propulsion x1, Utility x1 10767 | -3/Research | Identified exit to Research 10767 | -3/Research | Identified Exp. Core Analyzer 11064 | -3/Research | Build established: Scavenger-Mutant 11111 | -3/Research | Found Prototype Processor 11114 | -3/Research | Found Prototype Processor 11267 | -3/Research | Discovered exit to Research (range 21) 11302 | -3/Research | Entered another Research area 11302 | -2/Research | Warlord forces began assault on 0b10 11302 | -2/Research | Evolved 2 slots: Power x1, Weapon x1 11313 | -2/Research | Identified Exp. Targeting Computer (x2) 11412 | -2/Research | Research machine network offline 11549 | -2/Research | P-80 Master assimilated allied HZ-WGZ(i) 11558 | -2/Research | Spotted 01-EML(L) 11570 | -2/Research | Found Prototype Processor 11570 | -2/Research | Identified Spectral Analyzer 11574 | -2/Research | Found Prototype Processor 11574 | -2/Research | Identified Exp. Signal Interpreter 11580 | -2/Research | Found Exp. Signal Interpreter 11583 | -2/Research | Found Spectral Analyzer 11594 | -2/Research | Met up with Warlord 11612 | -2/Research | Found Prototype Processor 11612 | -2/Research | Identified Exp. Melee Analysis Suite 11650 | -2/Research | Discovered new exit (range 14) 11661 | -2/Research | Destroyed 01-EML(L) 11720 | -2/Research | Found Prototype Device 11720 | -2/Research | Identified Adv. Kinecellerator 11730 | -2/Research | Identified exit to Testing 11738 | -2/Research | Borebot progress halted 11758 | -2/Research | Found Adv. Kinecellerator 11771 | -2/Research | Spotted Striker 11783 | -2/Research | Destroyed Striker 11792 | -2/Research | Spotted B-90 Cyclops 11808 | -2/Research | Destroyed B-90 Cyclops 11861 | -2/Research | Spotted Striker 11998 | -2/Research | Borebot progress halted 12161 | -2/Research | Spotted Striker 12175 | -2/Research | Spotted Striker 12177 | -2/Research | Spotted Striker 12181 | -2/Research | Destroyed Striker 12187 | -2/Research | Destroyed Striker 12209 | -2/Research | Destroyed Striker 12236 | -2/Research | Destroyed 11 combat bots 12240 | -2/Research | Borebot progress halted 12365 | -2/Research | Spotted Executioner 12437 | -2/Research | Discovered new exit (range 23) 12486 | -2/Research | Found Prototype Launcher 12486 | -2/Research | Identified Point Singularity Launcher 12498 | -2/Research | Spotted Striker 12499 | -2/Research | Entered Access 12499 | -1/Access | Evolved 2 slots: Utility x1, Weapon x1 12567 | -1/Access | Spotted B-99 Colossus 13038 | -1/Access | First assault squad dispatched 13136 | -1/Access | Destroyed 12 combat bots 13152 | -1/Access | Energy Cycler disabled 13242 | -1/Access | Discovered new exit (range 13) 13348 | -1/Access | System corruption reached 10% 13378 | -1/Access | Destroyed 14 combat bots 13402 | -1/Access | Lost 9 parts (2p2n1u4w) 13483 | -1/Access | Found Fusion Bomb Launcher 13615 | -1/Access | Released all parts (13) 13624 | -1/Access | Garrison activated, responded to threat 13634 | *** | Escaped! Last Messages --------------- 13615_ Released Exp. Targeting Computer. 13615_ Released Exp. Core Analyzer. 13615_ Released Adv. Target Analyzer. 13615_ Released Adv. Terrain Scan Processor. 13615_ Released Huge Storage Unit. 13615_ Released Spectral Analyzer. 13615_ Released Adv. Hacking Suite. 13615_ Released Imp. Weapon Cycler. 13615_ Released Med. Treads. 13615_ Released YOLO Cannon. 13615_ Released Biometal Heavy Treads. 13624_ Destroyed Lgt. Antimatter Reactor. 13624_ Destroyed Hvy. Laser. 13624_ G-73 Enforcer destroyed. 13624_ Destroyed Lgt. Antimatter Reactor. 13624_ S-43 Plague destroyed. 13624_ L-61 Swordsman calls for garrison reinforcements. 13624_ ALERT: Activating Garrison Access A004. 13625_ Tiamat Missile Launcher destroyed. 13628_ Acquired 19 matter. Map ----- +----------------------------------------------------+ | ** = # + #### ? ?? ???? | | [**% # #### ?????? | | ! # #### ??????? | | # #### ? ????? | | =!!!]# ####### ? ?????? | | !! !!# #?###?# ?????? | | !=%![! ####### ####+###########??????? | | ##"!%! ##### #### ? ?###?????????? | | =*[=]% #?## #### ?? ???#????????? | | ! #### #### " ???????????????? | | ##""""" ##### #### ??""? ????????????? | | " % ###### ####? """ ??????????????? | | """ ###### #### " ????????????????? | | """ = # ############# ? ??????????????????? | | " # g ############# ? ?????????????? | | ###g # #############?####????????????????? | | ###g ###########?#?###??????#????????????? | | ### ###?###############????#????????????? | | ### #############?#####?#??#????????????? | | ### l####### ##########?#?#??#???????????? | | # # """T""" """"? ?????????????? | | ### s%!% "" ""?? BB????????????? | | * # #=!%!|! """"?BB ???????????? | | ###!!*==% """" ?? ??????????? | | ###########! =*= "" """? ??????????????? | | ###########!== @" ""?? ? ? ????????? | | ########### =%= ""?" ??????????? | | ####?# =!* "?"" BB?? ?#??????? | | ?#####*[= *[ """" BB ? ????????? | | ? ######=[ !*% """" ??????????? | | ? ??##? # ####### #############?###?##????????? | | ##?#### # %## ###################???###???????? | | ??#? ? # # #% # #########???###?#?########?????? | | ? # ?#!#= #=### #####?###########??#???#??????? | | ?# #!# # #?####################?#?#?###????? | | ?? ? ### # ##?## ######?###?#?????? | | #? #?# ###?### #####?###???####?? | | ? # ? ### ####### ##############???? | | ??? ? ?### ####### ####?##??##?#????? | | ??#?#?#?# ###### ###########??###?# | | ???? ? ? !###### ##########??#?#?## | | ?#?##??### ###### ####?#######?????# | | ???? ? ?# #?#### # ####?#?####? | | ?????? ##### ###### ##### #######?##?# | | ???? ? ##### ###### ##### ######??#### | | ???"??? ##### ###### #############?##?# | | ????" ? ##### # #### # ##??#####?# | | ????? ??### ###########/+##+### ###??##??## | | ????????##### #?# # ####?#? | | ?????? ##?## ### ### ?#####? | +----------------------------------------------------+ Best States ------------- Heat Dissipation 71 Energy Generation 49 Energy Capacity 600 Matter Stores 300 Matter Capacity 300 Sight Range 24 Terrain Scan Range 20 Terrain Scan Density 210 Jamming Range 16 Cloak Strength 2 Additional Mass Support 16 Armor Coverage 450 Resistance: KI 25 Resistance: TH 25 Resistance: EX 50 Weapon Cycling 20 Evasion (%) 50 Targeting Accuracy 12 Target Analysis 8 Core Analysis 8 Recoil Reduction 5 Kinecelleration 50 Salvage Targeting 4 Offensive Hacking 21 Authchip Count 1 Item Schematics ----------------- Adv. Terrain Scan Processor | -7/Factory | Hacked Robot Schematics ------------------ None Fabricated ------------ Adv. Terrain Scan Processor | x2 | -6/Factory | Authchip Alien Tech Used ----------------- None Achievements -------------- None Challenges ------------ None Game ------ Seed BoreAbsorptionBroadsword Manual? 0 Play Time 03:19:56 Cumulative 706.9 hours Start 2022.06.24 @ 16:22:41 End 2022.06.24 @ 20:22:20 Sessions 3 Manual Loads 0 Difficulty Rogue Special Mode None Game No. 368 Rogue 241 Adventurer 125 Explorer 2 Win Type 0 Total 81 Types 70/4/4/1/1/0/0/0/1 Lore% 81 Gallery% 88 Achievement% 75 Wizard Run 0 Options --------- ASCII 0 Keyboard 1 Movement Numpad Keybinds 0 Fullscreen 1 Font 36/TerminusFine Map View 76x50 Tactical HUD 1 Map Filters NONE Filters NONE Steam 1 RUN: 91c4f920-201c-46bb-b1fe-35a654c2cbd4